{"text_format":"1","workbook":"xlsx","n_sheets":4,"sheets":["Sys","Екатеринбург","Москва","Печать"],"not_rendered":{"charts":0,"images":0,"macros":1,"external_links":0,"defined_names":2,"comments":1,"pivot_tables":0},"unopened":[],"bounds":{"document_bytes":16777216,"sheet_cells":100000,"rows_first":2000,"rows_last":500,"rows_between":2000,"halvings":0,"cell_chars":16384,"cell_head_chars":4096},"cells_cut":0,"cells_raw":0,"read":"whole","date_system":"1900"}

{"sheet":"Sys","index":0,"n_rows":100,"n_cols":4,"rows_kept":100,"cut":false,"hidden":false,"merged":[]}
[null,null,null,{"$f":"IFERROR(INDEX(Оглавление,ROW(A1)),\"\")","v":"Sys"}]
[null,null,null,{"$f":"IFERROR(INDEX(Оглавление,ROW(A2)),\"\")","v":"Екатеринбург"}]
[null,null,null,"Москва"]
[null,null,null,"Печать"]
[null,null,null,""]
[null,null,null,""]
[null,null,null,""]
[null,null,null,""]
[null,null,null,""]
[null,null,null,""]
[null,null,null,""]
[null,null,null,""]
[null,null,null,""]
[null,null,null,""]
[null,null,null,""]
[null,null,null,""]
[null,null,null,""]
[null,null,null,""]
[null,null,null,""]
[null,null,null,""]
[null,null,null,""]
[null,null,null,""]
[null,null,null,""]
[null,null,null,""]
[null,null,null,""]
[null,null,null,""]
[null,null,null,""]
[null,null,null,""]
[null,null,null,""]
[null,null,null,""]
[null,null,null,""]
[null,null,null,""]
[null,null,null,""]
[null,null,null,""]
[null,null,null,""]
[null,null,null,""]
[null,null,null,""]
[null,null,null,""]
[null,null,null,""]
[null,null,null,""]
[null,null,null,""]
[null,null,null,""]
[null,null,null,""]
[null,null,null,""]
[null,null,null,""]
[null,null,null,""]
[null,null,null,""]
[null,null,null,""]
[null,null,null,""]
[null,null,null,""]
[null,null,null,""]
[null,null,null,""]
[null,null,null,""]
[null,null,null,""]
[null,null,null,""]
[null,null,null,""]
[null,null,null,""]
[null,null,null,""]
[null,null,null,""]
[null,null,null,""]
[null,null,null,""]
[null,null,null,""]
[null,null,null,""]
[null,null,null,""]
[null,null,null,""]
[null,null,null,{"$f":"IFERROR(INDEX(Оглавление,ROW(A66)),\"\")","v":""}]
[null,null,null,""]
[null,null,null,""]
[null,null,null,""]
[null,null,null,""]
[null,null,null,""]
[null,null,null,""]
[null,null,null,""]
[null,null,null,""]
[null,null,null,""]
[null,null,null,""]
[null,null,null,""]
[null,null,null,""]
[null,null,null,""]
[null,null,null,""]
[null,null,null,""]
[null,null,null,""]
[null,null,null,""]
[null,null,null,""]
[null,null,null,""]
[null,null,null,""]
[null,null,null,""]
[null,null,null,""]
[null,null,null,""]
[null,null,null,""]
[null,null,null,""]
[null,null,null,""]
[null,null,null,""]
[null,null,null,""]
[null,null,null,""]
[null,null,null,""]
[null,null,null,""]
[null,null,null,""]
[null,null,null,""]
[null,null,null,""]

{"sheet":"Екатеринбург","index":1,"n_rows":4,"n_cols":4,"rows_kept":4,"cut":false,"hidden":false,"merged":[]}
[]
[null,"№ \nп/п","Дата \nначала работ","Наименование объекта"]
[null,1,"2020-06-01","Объект №1 г. Екатеринбург \"Встроенно-пристроенная подземно-надземная автостоянка с помещениями трансформаторной подстанции (№3.1 по ПЗУ) – 1 этап 1 очереди строительства. Многоэтажный 5-секционный жилой дом со встроенными помещениями общественного назначения на 1-2 этажах (№1 по ПЗУ) – 3 этап 1 очереди строительства. Многоэтажный 2-секционный жилой дом со встроенными помещениями общественного назначения на 1-3 этажах, встроенной трансформаторной подстанцией (№2 по ПЗУ) и встроенно-пристроенной подземно-надземной автостоянкой (№3.2 по ПЗУ) – 2 очередь строительства, 6 этап», Свердловская область, г. Екатеринбург, ул. Азина, 22. Секция 1\""]
[null,2,"2020-07-01","Объект №2 г. Екатеринбург \"Встроенно-пристроенная подземно-надземная автостоянка с помещениями трансформаторной подстанции (№3.1 по ПЗУ) – 1 этап 1 очереди строительства. Многоэтажный 5-секционный жилой дом со встроенными помещениями общественного назначения на 1-2 этажах (№1 по ПЗУ) – 3 этап 1 очереди строительства. Многоэтажный 2-секционный жилой дом со встроенными помещениями общественного назначения на 1-3 этажах, встроенной трансформаторной подстанцией (№2 по ПЗУ) и встроенно-пристроенной подземно-надземной автостоянкой (№3.2 по ПЗУ) – 2 очередь строительства, 6 этап», Свердловская область, г. Екатеринбург, ул. Азина, 22. Секция 2\""]

{"sheet":"Москва","index":2,"n_rows":4,"n_cols":4,"rows_kept":4,"cut":false,"hidden":false,"merged":[]}
[]
[null,"№ \nп/п","Дата \nначала работ","Наименование объекта"]
[null,1,"2020-08-01","Объект №3 г. Москва \"Встроенно-пристроенная подземно-надземная автостоянка с помещениями трансформаторной подстанции (№3.1 по ПЗУ) – 1 этап 1 очереди строительства. Многоэтажный 5-секционный жилой дом со встроенными помещениями общественного назначения на 1-2 этажах (№1 по ПЗУ) – 3 этап 1 очереди строительства. Многоэтажный 2-секционный жилой дом со встроенными помещениями общественного назначения на 1-3 этажах, встроенной трансформаторной подстанцией (№2 по ПЗУ) и встроенно-пристроенной подземно-надземной автостоянкой (№3.2 по ПЗУ) – 2 очередь строительства, 6 этап», г. Москва. Секция 3\""]
[null,2,"2020-09-01","Объект №4 г. Москва \"Встроенно-пристроенная подземно-надземная автостоянка с помещениями трансформаторной подстанции (№3.1 по ПЗУ) – 1 этап 1 очереди строительства. Многоэтажный 5-секционный жилой дом со встроенными помещениями общественного назначения на 1-2 этажах (№1 по ПЗУ) – 3 этап 1 очереди строительства. Многоэтажный 2-секционный жилой дом со встроенными помещениями общественного назначения на 1-3 этажах, встроенной трансформаторной подстанцией (№2 по ПЗУ) и встроенно-пристроенной подземно-надземной автостоянкой (№3.2 по ПЗУ) – 2 очередь строительства, 6 этап», г. Москва. Секция 4\""]

{"sheet":"Печать","index":3,"n_rows":16,"n_cols":6,"rows_kept":16,"cut":false,"hidden":false,"merged":[[1,2,1,4],[1,5,1,33],[6,2,6,33],[8,2,8,33],[2,2,2,33],[3,2,3,33],[4,2,4,33],[5,2,5,33],[15,2,32,33],[15,0,32,0],[7,2,7,33],[14,2,14,33]]}
["Екатеринбург"]
[1,null,"Объект:",null,null,{"$f":"LEFTB(VLOOKUP($A$2,INDIRECT(\"'\"&$A$1&\"'!B3:AG4\"),3,1),LOOKUP(105,SEARCH(\" \",VLOOKUP($A$2,INDIRECT(\"'\"&$A$1&\"'!B3:AG4\"),3,1)&\" \",ROW($1:$105)))-1)","v":"Объект №1 г. Екатеринбург \"Встроенно-пристроенная подземно-надземная автостоянка с помещениями"}]
[null,null,{"$f":"LEFTB(REPLACE(VLOOKUP($A$2,INDIRECT(\"'\"&$A$1&\"'!B3:AG4\"),3,1),1,LEN($F$2)+1,),LOOKUP(110,SEARCH(\" \",REPLACE(VLOOKUP($A$2,INDIRECT(\"'\"&$A$1&\"'!B3:AG4\"),3,1),1,LEN($F$2)+1,)&\" \",ROW($1:$110)))-1)","v":"трансформаторной подстанции (№3.1 по ПЗУ) – 1 этап 1 очереди строительства. Многоэтажный 5-секционный жилой"}]
[null,null,{"$f":"LEFTB(REPLACE(VLOOKUP($A$2,INDIRECT(\"'\"&$A$1&\"'!B3:AG4\"),3,1),1,LEN($F$2)+SUM(LEN($C$3:C3))+1,),LOOKUP(110,SEARCH(\" \",REPLACE(VLOOKUP($A$2,INDIRECT(\"'\"&$A$1&\"'!B3:AG4\"),3,1),1,LEN($F$2)+SUM(LEN($C$3:C3))+1,)&\" \",ROW($1:$110)))-1)","v":" дом со встроенными помещениями общественного назначения на 1-2 этажах (№1 по ПЗУ) – 3 этап 1 очереди"}]
[null,null,{"$f":"LEFTB(REPLACE(VLOOKUP($A$2,INDIRECT(\"'\"&$A$1&\"'!B3:AG4\"),3,1),1,LEN($F$2)+SUM(LEN($C$3:C4))+1,),LOOKUP(110,SEARCH(\" \",REPLACE(VLOOKUP($A$2,INDIRECT(\"'\"&$A$1&\"'!B3:AG4\"),3,1),1,LEN($F$2)+SUM(LEN($C$3:C4))+1,)&\" \",ROW($1:$110)))-1)","v":" строительства. Многоэтажный 2-секционный жилой дом со встроенными помещениями общественного назначения на"}]
[null,null,{"$f":"LEFTB(REPLACE(VLOOKUP($A$2,INDIRECT(\"'\"&$A$1&\"'!B3:AG4\"),3,1),1,LEN($F$2)+SUM(LEN($C$3:C5))+1,),LOOKUP(110,SEARCH(\" \",REPLACE(VLOOKUP($A$2,INDIRECT(\"'\"&$A$1&\"'!B3:AG4\"),3,1),1,LEN($F$2)+SUM(LEN($C$3:C5))+1,)&\" \",ROW($1:$110)))-1)","v":" 1-3 этажах, встроенной трансформаторной подстанцией (№2 по ПЗУ) и встроенно-пристроенной подземно-надземной"}]
[null,null,{"$f":"LEFTB(REPLACE(VLOOKUP($A$2,INDIRECT(\"'\"&$A$1&\"'!B3:AG4\"),3,1),1,LEN($F$2)+SUM(LEN($C$3:C6))+1,),LOOKUP(110,SEARCH(\" \",REPLACE(VLOOKUP($A$2,INDIRECT(\"'\"&$A$1&\"'!B3:AG4\"),3,1),1,LEN($F$2)+SUM(LEN($C$3:C6))+1,)&\" \",ROW($1:$110)))-1)","v":" автостоянкой (№3.2 по ПЗУ) – 2 очередь строительства, 6 этап», Свердловская область, г. Екатеринбург, ул."}]
[null,null,{"$f":"LEFTB(REPLACE(VLOOKUP($A$2,INDIRECT(\"'\"&$A$1&\"'!B3:AG4\"),3,1),1,LEN($F$2)+SUM(LEN($C$3:C7))+1,),LOOKUP(110,SEARCH(\" \",REPLACE(VLOOKUP($A$2,INDIRECT(\"'\"&$A$1&\"'!B3:AG4\"),3,1),1,LEN($F$2)+SUM(LEN($C$3:C7))+1,)&\" \",ROW($1:$110)))-1)","v":" Азина, 22. Секция 1\""}]
[null,null,{"$f":"LEFTB(REPLACE(VLOOKUP($A$2,INDIRECT(\"'\"&$A$1&\"'!B3:AG4\"),3,1),1,LEN($F$2)+SUM(LEN($C$3:C8))+1,),LOOKUP(110,SEARCH(\" \",REPLACE(VLOOKUP($A$2,INDIRECT(\"'\"&$A$1&\"'!B3:AG4\"),3,1),1,LEN($F$2)+SUM(LEN($C$3:C8))+1,)&\" \",ROW($1:$110)))-1)","v":""}]
[]
[]
[]
[]
[]
[]
["Выше выбираю город и номер объекта",null,"Выше, цветом выделены строки с формулами, справа - регулятор длинны символов в строке.\nПроблема заключается в том, что при смене города и объекта - нужно вручную корректировать количество символов в строке для того чтобы слова не обрывались на пол слова...\n\n\n1) Необходимо решить данную задачу - модернизацией формулы таким образом, чтобы: \n- если целиком слово не влезает на строку, то переносить его на следующую строку\n- или внедрить \"знак переноса\" в невлазающие целиком слова по правилам русского языка\n\n2) Нужны кнопки для скрытия и раскрытия пустых строк.\n"]